bitfinex/quotes_SOLUSD_20250902
["timestamp","ask_amount","ask_price","bid_price","bid_amount"]
[1756795350994,0.06,204.66,204.65,7.80206582]
[1756795351211,0.06,204.66,204.65,5.59639139]
[1756795351411,0.06,204.66,204.65,7.80206582]
[1756795353520,0.06,204.66,204.65,5.59639139]
[1756795353721,0.06,204.66,204.65,7.80206582]
[1756795353921,0.06,204.66,204.65,4.88639139]
[1756795354697,0.06,204.66,204.65,5.59639139]
[1756795355403,0.06,204.66,204.63,4.88663277]
[1756795355610,38.92,204.66,204.63,4.88663277]
[1756795355819,0.06,204.66,204.64,0.69]
[1756795356026,38.9,204.66,204.65,0.69]
[1756795356838,38.9,204.66,204.63,7.8123072]
[1756795357018,38.9,204.66,204.65,4.88639139]
[1756795358935,0.06,204.66,204.65,7.78206582]
[1756795361940,0.06,204.66,204.65,4.88639139]
[1756795362242,0.06,204.66,204.65,30.88639139]
[1756795362707,0.06,204.66,204.65,4.88639139]
[1756795362708,38.82,204.66,204.65,4.88639139]
[1756795364208,0.06,204.66,204.65,4.88639139]
[1756795368420,38.8,204.66,204.65,4.88639139]
[1756795368643,38.7,204.66,204.65,4.88639139]
[1756795369068,133.86,204.68,204.65,7.78206582]
[1756795369362,133.86,204.68,204.66,28.89567443]
[1756795369522,133.86,204.68,204.66,28.20567443]
[1756795369722,133.86,204.68,204.67,0.69]
[1756795369918,0.06,204.68,204.66,28.20567443]
[1756795370354,0.06,204.68,204.66,28.89567443]
[1756795370550,0.06,204.68,204.67,4.88591391]
[1756795371029,0.06,204.68,204.67,5.57591391]
[1756795371349,0.06,204.68,204.67,7.78158834]
[1756795371532,0.06,204.68,204.67,5.57591391]
[1756795372043,0.06,204.68,204.67,4.88591391]
[1756795372449,0.06,204.68,204.67,5.57591391]
[1756795372625,0.06,204.68,204.67,4.88591391]
[1756795373635,0.06,204.68,204.67,5.57591391]
[1756795375353,0.06,204.68,204.67,7.78158834]
[1756795375849,0.06,204.68,204.67,5.57591391]
[1756795376235,0.06,204.68,204.67,7.53348291]
[1756795376435,0.06,204.68,204.67,9.73915734]
[1756795377657,0.06,204.68,204.67,7.53348291]
[1756795377952,0.06,204.68,204.67,9.73915734]
[1756795378541,0.06,204.68,204.67,7.53348291]
[1756795378745,0.06,204.68,204.67,9.73915734]
[1756795378943,0.06,204.68,204.67,7.53348291]
[1756795379143,0.06,204.68,204.67,9.73915734]
[1756795380761,0.06,204.68,204.67,7.53348291]
[1756795381059,0.06,204.68,204.67,9.73915734]
[1756795381238,0.06,204.68,204.67,7.53348291]
[1756795381940,0.06,204.68,204.67,9.73915734]
[1756795382661,0.06,204.69,204.67,9.73915734]
[1756795382837,0.06,204.69,204.68,7.78134963]
[1756795383563,0.06,204.69,204.68,5.5756752]
[1756795383745,0.06,204.69,204.68,7.78134963]
[1756795384060,0.06,204.69,204.68,5.5756752]
[1756795384436,0.06,204.69,204.68,7.78134963]
[1756795385875,0.06,204.69,204.68,4.8856752]
[1756795386033,0.06,204.69,204.67,4.16324343]
[1756795386369,0.06,204.69,204.68,0.68]
[1756795386543,0.06,204.69,204.67,9.04909819]
[1756795386749,0.06,204.69,204.68,0.68]
[1756795387675,0.06,204.69,204.68,5.5656752]
[1756795388137,0.06,204.69,204.68,7.5233402]
[1756795388660,0.06,204.69,204.68,1.957665]
[1756795388842,0.06,204.69,204.67,4.88589919]
[1756795390038,0.06,204.69,204.68,0.68]
[1756795390745,0.06,204.69,204.67,5.56589919]
[1756795391072,0.06,204.69,204.67,7.77157362]
[1756795391250,0.06,204.69,204.67,5.56589919]
[1756795391461,0.06,204.69,204.67,7.77157362]
[1756795391782,0.06,204.69,204.68,28.637857]
[1756795392170,0.06,204.69,204.68,27.957857]
[1756795393386,0.06,204.69,204.68,32.8435322]
[1756795393684,0.06,204.69,204.68,33.5235322]
[1756795394957,0.06,204.69,204.68,28.637857]
[1756795395661,0.06,204.69,204.68,1.957857]
[1756795395858,0.06,204.69,204.68,28.637857]
[1756795396256,0.06,204.69,204.68,33.5235322]
[1756795396776,0.06,204.69,204.68,32.8435322]
[1756795397078,0.06,204.69,204.68,6.8435322]
[1756795397391,0.06,204.69,204.68,7.5235322]
[1756795397878,0.06,204.69,204.68,6.8435322]
[1756795398893,0.06,204.69,204.68,7.5235322]
[1756795399095,0.06,204.69,204.68,1.957857]
[1756795399384,0.06,204.69,204.67,0.03]
[1756795399583,0.06,204.69,204.68,26.0]
[1756795400078,0.06,204.69,204.67,9.10730613]
[1756795401759,0.06,204.69,204.67,4.221446]
[1756795402488,0.06,204.69,204.67,0.03]
[1756795403970,4.1314457,204.68,204.67,0.03]
[1756795406004,156.41271491,204.68,204.67,0.03]
[1756795406975,150.83703971,204.68,204.67,0.03]
[1756795407193,147.39559401,204.68,204.67,0.03]
[1756795407377,186.21559401,204.68,204.67,0.03]
[1756795407876,172.62,204.68,204.67,0.03]
[1756795409086,133.8,204.68,204.67,0.03]
[1756795409268,172.6,204.68,204.67,0.03]
[1756795409467,190.32703971,204.68,204.67,0.03]
[1756795411076,151.52703971,204.68,204.67,0.03]
[1756795411272,190.32703971,204.68,204.67,0.03]
[1756795411477,151.52703971,204.68,204.67,0.03]
[1756795411784,190.30703971,204.68,204.67,0.03]
[1756795412491,151.52703971,204.68,204.67,0.03]
[1756795412668,190.28703971,204.68,204.67,0.03]
[1756795414772,195.17271491,204.68,204.67,0.03]
[1756795415674,156.41271491,204.68,204.67,0.03]
[1756795415893,61.39271491,204.68,204.67,0.03]
[1756795420796,61.35271491,204.68,204.67,0.03]
[1756795421894,61.37271491,204.68,204.67,0.03]
[1756795422615,22.61271491,204.68,204.67,0.03]
[1756795422900,61.33271491,204.68,204.67,0.03]
[1756795426888,63.29162591,204.68,204.67,0.03]
[1756795427779,24.57162591,204.68,204.67,0.03]
[1756795427983,63.25162591,204.68,204.67,0.03]
[1756795429474,17.03703971,204.65,204.64,0.03]
[1756795429683,55.69703971,204.65,204.64,0.03]
[1756795429898,61.2934311,204.65,204.64,0.03]
[1756795431303,60.5634311,204.65,204.64,0.03]
[1756795431605,60.5634311,204.65,204.64,0.69]
[1756795431606,55.67703971,204.65,204.64,0.69]
[1756795431781,55.67703971,204.65,204.64,0.03]
[1756795432500,17.03703971,204.65,204.64,0.03]
[1756795432680,55.65703971,204.65,204.64,0.69]
[1756795433000,52.21559401,204.65,204.64,0.69]
[1756795433190,13.59559401,204.65,204.64,0.69]
[1756795433388,52.21559401,204.65,204.64,0.69]
[1756795433586,38.62,204.65,204.64,0.69]
[1756795433788,38.62,204.65,204.64,5.57663017]
[1756795434507,17.03703971,204.67,204.64,5.57663017]
[1756795434679,52.21559401,204.66,204.65,0.66]
[1756795435120,55.65703971,204.66,204.65,0.66]
[1756795436609,52.21559401,204.66,204.65,0.66]
[1756795437704,55.65703971,204.66,204.65,0.66]
[1756795437906,52.21559401,204.66,204.65,0.66]
[1756795439014,147.39559401,204.65,204.64,0.03]
[1756795439321,147.39559401,204.65,204.64,0.69]
[1756795440815,147.39559401,204.65,204.64,0.03]
[1756795440992,150.83703971,204.65,204.64,0.03]
[1756795442012,150.83703971,204.65,204.64,0.69]
[1756795442631,147.39559401,204.65,204.64,0.69]
[1756795443224,151.54703971,204.65,204.64,0.03]
[1756795443714,156.4334311,204.65,204.64,0.03]
[1756795444419,22.6334311,204.65,204.64,0.03]
[1756795446123,28.63072635,204.65,204.63,0.03]
[1756795446290,81.55703971,204.64,204.63,0.03]
[1756795446495,13.59559401,204.63,204.62,0.03]
[1756795446694,21.13848541,204.63,204.61,0.03]
[1756795447000,63.88559321,204.62,204.61,0.03]
[1756795447393,66.50517621,204.62,204.61,0.03]
[1756795448493,70.35843615,204.62,204.61,0.03]
[1756795448693,13.59559401,204.61,204.6,0.03]
[1756795448914,20.47848541,204.61,204.6,0.03]
[1756795449102,20.47848541,204.61,204.6,1e-08]
[1756795449103,21.13848541,204.61,204.6,1e-08]
[1756795449598,40.47848541,204.6,204.59,0.03]
[1756795449797,78.99848541,204.6,204.59,0.03]
[1756795450000,147.39559401,204.59,204.57,0.03]
[1756795450218,17.69703971,204.59,204.57,0.03]
[1756795450401,22.58486413,204.59,204.57,0.03]
[1756795451199,24.54483213,204.59,204.57,0.03]
[1756795451713,63.06483213,204.59,204.57,0.03]
[1756795451914,63.04483213,204.59,204.57,0.03]
[1756795452525,24.54483213,204.59,204.57,0.03]
[1756795453105,63.04483213,204.59,204.57,0.03]
[1756795453725,24.54483213,204.59,204.57,0.03]
[1756795454136,63.04483213,204.59,204.57,0.03]
[1756795454801,39.59559401,204.56,204.54,0.03]
[1756795455009,81.53703971,204.56,204.54,0.03]
[1756795455226,82.19703971,204.56,204.54,0.03]
[1756795455411,84.15719871,204.56,204.54,0.03]
[1756795455728,59.59559401,204.51,204.5,0.03]
[1756795456037,104.97848541,204.51,204.5,0.03]
[1756795456212,39.59559401,204.51,204.5,0.03]
[1756795456410,84.94587445,204.51,204.5,0.7]
[1756795456624,17.03703971,204.51,204.5,0.7]
[1756795456834,55.53703971,204.51,204.5,0.7]
[1756795457234,13.59559401,204.51,204.5,0.7]
[1756795457738,54.30302975,204.51,204.5,0.7]
[1756795458724,52.09559401,204.51,204.5,0.7]
[1756795463332,54.30302975,204.51,204.5,0.7]
[1756795463727,52.09559401,204.51,204.5,0.7]
[1756795465013,54.30302975,204.51,204.5,0.7]
[1756795466216,52.09559401,204.51,204.5,0.7]
[1756795466415,54.30302975,204.51,204.5,0.7]
[1756795473234,54.30302975,204.51,204.5,0.03]
[1756795473614,59.85276619,204.51,204.5,0.03]
[1756795473937,68.68250915,204.51,204.5,0.03]
[1756795474625,59.19276619,204.51,204.5,0.03]
[1756795479031,61.15302219,204.51,204.5,0.03]
[1756795481923,61.21302219,204.51,204.5,0.03]
[1756795484144,70.04276515,204.51,204.5,0.03]
[1756795484341,61.21302219,204.51,204.5,0.03]
[1756795484642,70.04276515,204.51,204.5,0.03]
[1756795484832,61.21302219,204.51,204.5,0.03]
[1756795485028,15.61585001,204.51,204.5,0.03]
[1756795485349,54.36302975,204.51,204.5,0.72]
[1756795486046,15.86302975,204.51,204.5,0.72]
[1756795486250,13.65559401,204.51,204.5,0.72]
[1756795486557,52.15559401,204.51,204.5,0.72]
[1756795486734,13.65559401,204.51,204.5,5.60997555]
[1756795486937,38.56,204.51,204.5,7.56965555]
[1756795487251,0.06,204.51,204.5,7.56965555]
[1756795487434,38.56,204.51,204.5,7.56965555]
[1756795487753,0.06,204.51,204.5,7.56965555]
[1756795497069,0.06,204.51,204.5,5.60997555]
[1756795497966,2.26743574,204.51,204.5,26.03]
[1756795498152,2.26743574,204.51,204.5,26.72]
[1756795499051,16.55302975,204.51,204.5,0.03]
[1756795499661,21.44276619,204.51,204.5,0.03]
[1756795500269,68.75250915,204.51,204.5,0.03]
[1756795500875,54.34302975,204.51,204.5,0.03]
[1756795501058,52.13559401,204.51,204.5,0.03]
[1756795501250,54.34302975,204.51,204.5,0.03]
[1756795501775,59.92276619,204.51,204.5,0.03]
[1756795502175,54.34302975,204.51,204.5,0.03]
[1756795502776,55.03302975,204.51,204.5,0.03]
[1756795503276,52.13559401,204.51,204.5,0.03]
[1756795503572,54.34302975,204.51,204.5,0.03]
[1756795504470,54.34302975,204.51,204.5,0.72]
[1756795504658,52.13559401,204.51,204.5,0.72]
[1756795504979,38.54,204.51,204.5,0.72]
[1756795505462,0.06,204.51,204.5,5.60997555]
[1756795505656,38.54,204.51,204.5,5.60997555]
[1756795506665,0.06,204.51,204.5,5.60997555]
[1756795506861,0.06,204.51,204.5,7.81741129]
[1756795508075,0.06,204.51,204.5,5.60997555]
[1756795508254,0.06,204.51,204.5,7.81741129]
[1756795508454,0.06,204.54,204.53,26.0]
[1756795508959,0.06,204.54,204.53,0.66]
[1756795509160,52.11559401,204.54,204.52,30.88945334]
[1756795509385,52.11559401,204.54,204.52,26.66]
[1756795509557,54.32302975,204.54,204.52,0.66]
[1756795510258,52.11559401,204.54,204.51,4.88964977]
[1756795510454,52.11559401,204.54,204.52,0.66]
[1756795510776,54.32302975,204.54,204.52,0.66]
[1756795511656,0.06,204.54,204.53,0.66]
[1756795511852,38.52,204.54,204.51,26.66]
[1756795512078,13.59559401,204.53,204.51,0.66]
[1756795512290,15.80302975,204.53,204.51,0.66]
[1756795512457,13.59559401,204.53,204.51,0.66]
[1756795512670,13.59559401,204.53,204.5,30.91988779]
[1756795512671,15.80302975,204.53,204.5,30.91988779]
[1756795512863,15.80302975,204.53,204.5,31.57988779]
[1756795513286,13.59559401,204.53,204.5,31.57988779]
[1756795513585,15.80302975,204.53,204.5,31.57988779]
[1756795514086,15.80302975,204.53,204.51,5.54969596]
[1756795515454,2.87743574,204.52,204.5,0.03]
[1756795515654,54.26302975,204.51,204.5,0.03]
[1756795515893,52.05559401,204.51,204.5,0.03]
[1756795516059,52.05559401,204.51,204.5,4.91997555]
[1756795516260,52.05559401,204.51,204.5,0.03]
[1756795516758,15.80302975,204.51,204.5,0.03]
[1756795516967,54.26302975,204.51,204.5,0.03]
[1756795517694,55.50426577,204.51,204.5,0.03]
[1756795519682,13.59559401,204.51,204.5,0.03]
[1756795519890,38.46,204.51,204.5,0.69]
[1756795520070,0.06,204.54,204.5,0.69]
[1756795520271,38.46,204.53,204.5,4.13867176]
[1756795520570,38.46,204.53,204.51,0.66]
[1756795520968,38.46,204.53,204.5,3.47867176]
[1756795520969,38.46,204.53,204.52,0.66]
[1756795521179,38.46,204.53,204.5,26.69]
[1756795521180,3.44867176,204.53,204.5,26.69]
[1756795521382,3.44867176,204.52,204.5,26.03]
[1756795521564,38.46,204.51,204.5,26.03]
[1756795521758,38.46,204.51,204.5,4.91997555]
[1756795522066,38.46,204.51,204.5,5.57997555]
[1756795523183,38.46,204.51,204.5,4.91997555]
[1756795523358,38.46,204.51,204.5,26.03]
[1756795523563,38.46,204.51,204.5,5.57989464]
[1756795523878,0.06,204.54,204.5,5.57989464]
[1756795524066,38.46,204.53,204.51,0.66]
[1756795524377,52.05559401,204.53,204.52,0.66]
[1756795524578,0.06,204.54,204.52,0.66]
[1756795524768,38.52,204.54,204.52,0.66]
[1756795524970,38.52,204.54,204.53,4.88925829]
[1756795525191,38.52,204.54,204.53,31.54925829]
[1756795526485,0.06,204.54,204.53,34.99793005]
[1756795527592,0.06,204.54,204.53,31.54925829]
[1756795528486,0.06,204.54,204.53,34.99793005]
[1756795528977,0.06,204.54,204.53,31.54925829]
[1756795530373,0.06,204.54,204.53,34.99793005]
[1756795533565,0.06,204.54,204.53,31.54925829]
[1756795533764,0.06,204.54,204.53,30.88925829]
[1756795533965,0.06,204.54,204.53,31.54925829]
[1756795535495,0.06,204.54,204.53,30.88925829]
[1756795535676,0.06,204.54,204.53,31.58925829]
[1756795538486,0.06,204.54,204.52,4.88943956]
[1756795538994,0.06,204.54,204.52,5.58943956]
[1756795540496,0.06,204.54,204.52,4.88943956]
[1756795540985,0.06,204.54,204.52,5.58943956]
[1756795541184,0.06,204.54,204.52,4.88943956]
[1756795541500,0.06,204.54,204.52,0.7]
[1756795541703,0.06,204.54,204.52,26.7]
[1756795542084,0.06,204.54,204.52,26.0]
[1756795542286,0.06,204.54,204.52,26.7]
[1756795542485,0.06,204.54,204.53,0.7]
[1756795542701,0.06,204.54,204.52,26.7]
[1756795543494,0.06,204.54,204.53,4.88925829]
[1756795545275,0.06,204.54,204.53,5.58925829]
[1756795546093,0.06,204.54,204.53,4.88925829]
[1756795550414,0.06,204.54,204.53,5.58925829]
[1756795550711,0.06,204.54,204.53,4.88925829]
[1756795553414,0.06,204.54,204.53,5.58925829]
[1756795555006,0.06,204.54,204.53,4.88925829]
[1756795555223,0.06,204.54,204.53,5.58925829]
[1756795556193,0.06,204.54,204.53,4.88925829]
[1756795556618,0.06,204.54,204.53,5.58925829]
[1756795558325,0.06,204.54,204.51,0.03]
[1756795558326,17.79426577,204.54,204.51,0.03]
[1756795558503,41.86867176,204.53,204.51,0.03]
[1756795558706,3.44867176,204.52,204.51,0.03]
[1756795559021,17.04426577,204.52,204.51,0.03]
[1756795559200,13.59559401,204.52,204.51,0.03]
[1756795559404,17.04426577,204.52,204.51,0.03]
[1756795560505,17.73426577,204.52,204.51,0.03]
[1756795560904,26.07243488,204.52,204.51,0.03]
[1756795561526,22.62376312,204.52,204.51,0.03]
[1756795561732,17.73426577,204.52,204.51,0.03]
[1756795561908,56.15426577,204.52,204.51,0.03]
[1756795562225,61.04376312,204.52,204.51,0.03]
[1756795562417,17.73426577,204.52,204.51,0.03]
[1756795562599,56.15426577,204.52,204.51,0.03]
[1756795564602,17.73426577,204.52,204.51,0.03]
[1756795564802,56.15426577,204.52,204.51,0.03]
[1756795565033,61.04376312,204.52,204.51,0.03]
[1756795567129,64.49243488,204.52,204.51,0.03]
[1756795567611,26.07243488,204.52,204.51,0.03]
[1756795567806,66.45288288,204.52,204.51,0.03]
[1756795569707,28.03288288,204.52,204.51,0.03]
[1756795569907,66.45288288,204.52,204.51,0.03]
[1756795570731,24.58421112,204.52,204.51,0.03]
[1756795571035,60.35376312,204.52,204.51,0.03]
[1756795571213,13.59559401,204.52,204.51,0.03]
[1756795571526,55.46426577,204.52,204.51,0.75]
[1756795571732,55.46426577,204.52,204.51,0.03]
[1756795572109,17.04426577,204.52,204.51,0.03]
[1756795572308,55.46426577,204.52,204.51,0.03]
[1756795573234,52.01559401,204.52,204.51,0.75]
[1756795573541,55.46426577,204.52,204.51,0.75]
[1756795573938,55.46426577,204.52,204.51,0.03]
[1756795574321,17.04426577,204.52,204.51,0.03]
[1756795574529,55.46426577,204.52,204.51,0.75]
[1756795576437,55.46426577,204.52,204.51,0.03]
[1756795576845,52.01559401,204.52,204.51,0.03]
[1756795577146,55.46426577,204.52,204.51,0.75]
[1756795577726,55.44426577,204.52,204.51,0.03]
[1756795579323,60.33376312,204.52,204.51,0.03]
[1756795579526,68.61552731,204.52,204.51,0.03]
[1756795579844,59.78317855,204.52,204.51,0.03]
[1756795580018,54.2036812,204.52,204.51,0.03]
[1756795580217,59.78317855,204.52,204.51,0.03]
[1756795581315,21.38317855,204.52,204.51,0.03]
[1756795581517,59.78317855,204.52,204.51,0.03]
[1756795582436,59.84317855,204.52,204.51,0.03]
[1756795585445,59.15317855,204.52,204.51,0.03]
[1756795585824,54.2636812,204.52,204.51,0.03]
[1756795586848,39.59559401,204.5,204.49,0.03]
[1756795587036,39.59559401,204.5,204.48,0.03]
[1756795587037,13.59559401,204.49,204.48,0.03]
[1756795587358,16.4936812,204.49,204.48,0.03]
[1756795587522,2.20808719,204.48,204.4,0.2]
[1756795587723,13.59559401,204.45,204.4,0.2]
[1756795587952,15.8036812,204.41,204.4,0.2]
[1756795588147,54.2036812,204.41,204.4,0.2]
[1756795588458,61.05712276,204.41,204.4,0.2]
[1756795589556,61.74712276,204.41,204.4,0.2]
[1756795590248,70.57947152,204.41,204.4,0.2]
[1756795592034,13.59559401,204.4,204.34,0.72]
[1756795592233,2.20808719,204.35,204.34,0.72]
[1756795592454,54.2836812,204.35,204.34,0.72]
[1756795596443,1.961313,204.41,204.34,0.72]
[1756795596641,13.59559401,204.38,204.34,5.61376373]
[1756795596855,38.48,204.37,204.35,26.72]
[1756795597162,38.48,204.37,204.36,0.72]
[1756795597360,38.48,204.39,204.36,0.72]
[1756795597557,13.59559401,204.45,204.36,2.92808719]
[1756795597790,13.59559401,204.45,204.39,2.20808719]
[1756795597791,15.8036812,204.45,204.39,2.20808719]
[1756795597965,14.706243,204.47,204.34,4.89376373]
[1756795597966,13.59559401,204.39,204.34,4.89376373]
[1756795598257,38.48,204.38,204.35,0.72]
[1756795598463,38.48,204.38,204.35,5.61351791]
[1756795598638,38.48,204.38,204.36,0.72]
[1756795598961,38.58,204.37,204.36,0.72]
[1756795600667,2.20808719,204.41,204.37,4.89308606]
[1756795600867,38.58,204.4,204.38,0.72]
[1756795601743,38.58,204.4,204.38,5.61264124]
[1756795601932,38.58,204.4,204.39,0.72]
[1756795602136,38.58,204.4,204.37,0.03]
[1756795602137,13.59559401,204.39,204.37,0.03]
[1756795602337,54.3636812,204.38,204.37,0.03]
[1756795605242,59.95652785,204.38,204.37,0.03]
[1756795606457,57.04844066,204.38,204.37,0.03]
[1756795606749,57.74844066,204.38,204.37,0.03]
[1756795607565,13.59559401,204.38,204.37,0.03]
[1756795607759,54.5436812,204.38,204.37,0.03]
[1756795608968,52.33559401,204.38,204.37,0.03]
[1756795609170,55.2436812,204.38,204.37,0.03]
[1756795609971,60.13652785,204.38,204.37,0.03]
[1756795610756,59.43652785,204.38,204.37,0.03]
[1756795611379,54.5436812,204.38,204.37,0.03]
[1756795611557,54.6236812,204.38,204.37,0.03]
[1756795613553,59.51652785,204.38,204.37,0.03]
[1756795614163,54.6236812,204.38,204.37,0.03]
[1756795614763,52.41559401,204.38,204.37,0.03]
[1756795614961,54.6236812,204.38,204.37,0.03]
[1756795616454,52.41559401,204.38,204.37,0.03]
[1756795616666,54.6236812,204.38,204.37,0.03]
[1756795616979,54.5836812,204.38,204.37,0.03]
[1756795617179,15.8036812,204.38,204.37,0.03]
[1756795617355,54.5836812,204.38,204.37,0.03]
[1756795618383,13.59559401,204.38,204.37,0.03]
[1756795618563,54.5836812,204.38,204.37,0.03]
[1756795618770,54.5636812,204.38,204.37,0.03]
[1756795618965,59.45652785,204.38,204.37,0.03]
[1756795619885,60.13652785,204.38,204.37,0.03]
[1756795620185,55.2436812,204.38,204.37,0.03]
[1756795620478,54.5436812,204.38,204.37,0.03]
[1756795620691,15.8036812,204.38,204.37,0.75]
[1756795620870,52.33559401,204.38,204.37,0.75]
[1756795621065,38.74,204.38,204.37,0.75]
[1756795621457,40.94808719,204.38,204.37,0.75]
[1756795621673,38.74,204.38,204.37,0.75]
[1756795621871,40.94808719,204.38,204.37,0.75]
[1756795623177,54.5436812,204.38,204.37,0.75]
[1756795624194,52.33559401,204.38,204.37,0.75]
[1756795624570,54.5436812,204.38,204.37,0.75]
[1756795625593,0.06,204.4,204.37,0.75]
[1756795625780,40.90808719,204.39,204.37,5.64297144]
[1756795625972,0.06,204.4,204.39,26.0]
[1756795626368,0.06,204.4,204.39,26.71]
[1756795626588,2.26808719,204.4,204.39,0.71]
[1756795627088,2.26808719,204.4,204.39,5.60260727]
[1756795627089,0.06,204.4,204.39,5.60260727]
[1756795627300,0.06,204.4,204.39,0.71]
[1756795629196,2.26808719,204.4,204.37,26.74]
[1756795629401,38.66,204.39,204.38,0.71]
[1756795629896,38.64,204.39,204.38,0.71]
[1756795630587,0.06,204.4,204.38,0.71]
[1756795630793,0.06,204.4,204.39,4.89260727]
[1756795631097,15.8636812,204.4,204.38,0.71]
[1756795631273,40.86808719,204.39,204.38,0.71]
[1756795631473,54.4636812,204.39,204.38,0.71]
[1756795632275,54.4636812,204.39,204.37,0.03]
[1756795632276,13.59559401,204.38,204.37,0.03]
[1756795632483,15.8036812,204.38,204.37,0.03]
[1756795634299,2.20808719,204.38,204.37,0.03]
[1756795634498,38.64,204.38,204.37,0.74]
[1756795634802,40.84808719,204.38,204.37,0.74]
[1756795635000,54.4436812,204.38,204.37,0.03]
[1756795636687,0.7,204.45,204.38,20.0]
[1756795637004,13.59559401,204.43,204.38,20.71]
[1756795637186,2.20808719,204.4,204.38,20.71]
[1756795637387,38.64,204.39,204.38,20.71]
[1756795639805,52.21559401,204.41,204.4,20.0]
[1756795639985,52.21559401,204.41,204.4,20.71]
[1756795641690,13.59559401,204.41,204.4,20.71]
[1756795643989,13.59559401,204.41,204.4,25.6023679]
[1756795644399,13.59559401,204.41,204.4,20.71]
[1756795645708,13.59559401,204.41,204.4,20.0]
[1756795647614,13.59559401,204.4,204.38,20.0]
[1756795647829,52.13559401,204.39,204.38,20.0]
[1756795648222,55.58829874,204.39,204.38,20.0]
[1756795650183,55.58829874,204.39,204.37,0.03]
[1756795650184,13.59559401,204.38,204.37,0.03]
[1756795650408,17.04829874,204.38,204.37,0.03]
[1756795659622,52.07559401,204.38,204.37,0.74]
[1756795659836,13.59559401,204.38,204.37,0.74]
[1756795660125,52.07559401,204.38,204.37,0.74]
[1756795660905,55.52829874,204.38,204.37,0.74]
[1756795661916,17.04829874,204.38,204.37,0.74]
[1756795663312,13.59559401,204.45,204.43,20.0]
[1756795663513,41.91270473,204.44,204.43,20.0]
[1756795664717,52.05559401,204.44,204.43,20.71]
[1756795664915,55.50829874,204.44,204.43,20.71]
[1756795666224,55.50829874,204.44,204.43,20.0]
[1756795667930,147.39559401,204.49,204.48,20.0]
[1756795668134,189.30829874,204.49,204.48,20.0]
[1756795669110,189.36829874,204.49,204.48,20.0]
[1756795669828,189.36829874,204.49,204.46,20.0]
[1756795669829,194.96851342,204.49,204.46,20.0]
[1756795670136,3.45270473,204.47,204.46,20.0]
[1756795670445,41.91270473,204.47,204.46,20.0]
[1756795670815,46.80339774,204.47,204.46,20.0]
[1756795671433,13.59559401,204.46,204.44,20.0]
[1756795671747,55.50829874,204.45,204.44,20.0]
[1756795673029,60.39947017,204.45,204.44,20.0]
[1756795673543,55.50829874,204.45,204.44,20.0]
[1756795679935,60.39947017,204.45,204.44,20.0]
[1756795680250,13.59559401,204.44,204.4,20.0]
[1756795680557,17.04829874,204.41,204.4,20.0]
[1756795680726,55.50829874,204.41,204.4,20.0]
[1756795681426,17.04829874,204.41,204.4,20.71]
[1756795681742,38.46,204.41,204.4,20.71]
[1756795681927,52.05559401,204.42,204.4,20.71]
[1756795682127,52.05559401,204.42,204.41,0.71]
[1756795682548,55.50829874,204.42,204.4,20.0]
[1756795682751,55.50829874,204.42,204.4,20.71]
[1756795682752,3.45270473,204.41,204.4,20.71]
[1756795683838,55.50829874,204.42,204.4,20.71]